[Event "*** SCC Grand Prix: Titled Tuesday Blitz"]
[Site "Chess.com"]
[Date "2020.07.07"]
[Round "9"]
[White "Chessmasterzt"]
[Black "chenxiaoyuer"]
[Result "1/2-1/2"]
[WhiteElo "2599"]
[BlackElo "2440"]
[TimeControl "180+1"]
[EndTime "11:47:44 PDT"]
[Termination "Game drawn - insufficient material"]

1. d4 {[%clk 0:03:00.9]} 1... Nf6 {[%clk 0:03:00.1]} 2. Nf3 {[%clk 0:03:01.2]}
2... g6 {[%clk 0:03:00]} 3. c4 {[%clk 0:03:01.7]} 3... Bg7 {[%clk 0:03:00.5]} 4.
Nc3 {[%clk 0:03:02]} 4... O-O {[%clk 0:03:01.1]} 5. e4 {[%clk 0:03:02.3]} 5...
d6 {[%clk 0:03:01.7]} 6. Be2 {[%clk 0:03:02.8]} 6... e5 {[%clk 0:03:02.2]} 7.
O-O {[%clk 0:03:03.3]} 7... Nc6 {[%clk 0:03:02.7]} 8. d5 {[%clk 0:03:03.8]} 8...
Ne7 {[%clk 0:03:03.3]} 9. b4 {[%clk 0:03:04.2]} 9... a5 {[%clk 0:03:02.9]} 10.
Ba3 {[%clk 0:03:03.2]} 10... Nh5 {[%clk 0:03:02.2]} 11. c5 {[%clk 0:02:48.8]}
11... Nf4 {[%clk 0:02:18.9]} 12. bxa5 {[%clk 0:02:19.5]} 12... Nxe2+ {[%clk
0:02:01.1]} 13. Qxe2 {[%clk 0:02:16.6]} 13... Rxa5 {[%clk 0:01:54.9]} 14. Bb4
{[%clk 0:02:16.8]} 14... Ra6 {[%clk 0:01:53.5]} 15. a4 {[%clk 0:01:47.5]} 15...
f5 {[%clk 0:01:42.7]} 16. Ng5 {[%clk 0:01:46.7]} 16... fxe4 {[%clk 0:01:41.9]}
17. Ngxe4 {[%clk 0:01:40.6]} 17... Bf5 {[%clk 0:01:20.1]} 18. c6 {[%clk
0:01:20.8]} 18... Ra7 {[%clk 0:01:05.4]} 19. Nb5 {[%clk 0:01:10.2]} 19... Ra6
{[%clk 0:00:44.6]} 20. cxb7 {[%clk 0:01:08.9]} 20... Nxd5 {[%clk 0:00:32.2]} 21.
Nbxd6 {[%clk 0:00:31.8]} 21... Nxb4 {[%clk 0:00:15.4]} 22. Qc4+ {[%clk
0:00:27.8]} 22... Kh8 {[%clk 0:00:15.4]} 23. Nxf5 {[%clk 0:00:15.7]} 23... gxf5
{[%clk 0:00:13.4]} 24. Qxb4 {[%clk 0:00:15.4]} 24... fxe4 {[%clk 0:00:12.3]} 25.
a5 {[%clk 0:00:15.8]} 25... Rg6 {[%clk 0:00:08.7]} 26. Rab1 {[%clk 0:00:11.1]}
26... Qb8 {[%clk 0:00:07.2]} 27. Qxe4 {[%clk 0:00:09.1]} 27... Qa7 {[%clk
0:00:05.8]} 28. Qd5 {[%clk 0:00:06.2]} 28... Rb8 {[%clk 0:00:04.4]} 29. Rb2
{[%clk 0:00:04.7]} 29... Rd6 {[%clk 0:00:04.2]} 30. Qe4 {[%clk 0:00:03.9]} 30...
Qxa5 {[%clk 0:00:03.9]} 31. Rfb1 {[%clk 0:00:04]} 31... Rb6 {[%clk 0:00:03.6]}
32. Rxb6 {[%clk 0:00:03.3]} 32... cxb6 {[%clk 0:00:04.5]} 33. Qc6 {[%clk
0:00:03]} 33... Qc5 {[%clk 0:00:03.9]} 34. Qd7 {[%clk 0:00:02.8]} 34... h6
{[%clk 0:00:03.2]} 35. h4 {[%clk 0:00:01.9]} 35... Kh7 {[%clk 0:00:03.2]} 36.
Rd1 {[%clk 0:00:01.9]} 36... Kh8 {[%clk 0:00:02.9]} 37. Qf5 {[%clk 0:00:02.3]}
37... Qc7 {[%clk 0:00:02.4]} 38. Rd7 {[%clk 0:00:02.7]} 38... Qc6 {[%clk
0:00:01.6]} 39. Qf7 {[%clk 0:00:02.2]} 39... Qf6 {[%clk 0:00:01.8]} 40. Rc7
{[%clk 0:00:01.9]} 40... Qxf7 {[%clk 0:00:01.7]} 41. Rxf7 {[%clk 0:00:02.8]}
41... b5 {[%clk 0:00:01.8]} 42. Rc7 {[%clk 0:00:03.3]} 42... Kh7 {[%clk
0:00:02.2]} 43. Rc8 {[%clk 0:00:03.6]} 43... Rxb7 {[%clk 0:00:02.2]} 44. Rc3
{[%clk 0:00:03.8]} 44... b4 {[%clk 0:00:02.6]} 45. Rb3 {[%clk 0:00:04.7]} 45...
e4 {[%clk 0:00:03]} 46. Kf1 {[%clk 0:00:05.5]} 46... Bc3 {[%clk 0:00:03.8]} 47.
Ke2 {[%clk 0:00:06.4]} 47... Rc7 {[%clk 0:00:04.3]} 48. Ke3 {[%clk 0:00:06.8]}
48... Rd7 {[%clk 0:00:04.7]} 49. Kxe4 {[%clk 0:00:07.6]} 49... Rd2 {[%clk
0:00:05]} 50. Ke3 {[%clk 0:00:07.4]} 50... Rb2 {[%clk 0:00:04.8]} 51. Rxb2
{[%clk 0:00:07.1]} 51... Bxb2 {[%clk 0:00:05.7]} 52. g4 {[%clk 0:00:07.3]} 52...
Bc3 {[%clk 0:00:06.6]} 53. Kd3 {[%clk 0:00:07]} 53... Kg6 {[%clk 0:00:07.5]} 54.
f3 {[%clk 0:00:07.3]} 54... Be5 {[%clk 0:00:07.4]} 55. Kc4 {[%clk 0:00:06.5]}
55... Bc3 {[%clk 0:00:07.7]} 56. f4 {[%clk 0:00:06.6]} 56... Kf6 {[%clk
0:00:07.7]} 57. h5 {[%clk 0:00:06.8]} 57... Ke6 {[%clk 0:00:07.6]} 58. Kd3
{[%clk 0:00:04.5]} 58... Kd5 {[%clk 0:00:07.6]} 59. g5 {[%clk 0:00:04.7]} 59...
Bg7 {[%clk 0:00:07.3]} 60. Kc2 {[%clk 0:00:03]} 60... Ke4 {[%clk 0:00:06.6]} 61.
Kb3 {[%clk 0:00:02.3]} 61... Kxf4 {[%clk 0:00:03]} 62. gxh6 {[%clk 0:00:02.7]}
62... Bxh6 {[%clk 0:00:03.9]} 63. Kxb4 {[%clk 0:00:02.3]} 63... Kg4 {[%clk
0:00:04.8]} 64. Kc4 {[%clk 0:00:03.2]} 64... Kxh5 {[%clk 0:00:05.7]} 1/2-1/2

[Event "*** SCC Grand Prix: Titled Tuesday Blitz"]
[Site "Chess.com"]
[Date "2020.07.07"]
[Round "9"]
[White "Juanovic"]
[Black "chalowey97"]
[Result "1-0"]
[WhiteElo "2082"]
[BlackElo "2118"]
[TimeControl "180+1"]
[EndTime "11:47:44 PDT"]
[Termination "Juanovic won by checkmate"]

1. e4 {[%clk 0:03:00.9]} 1... e6 {[%clk 0:02:58.2]} 2. d4 {[%clk 0:02:59.9]}
2... d5 {[%clk 0:02:58.1]} 3. Nc3 {[%clk 0:03:00.1]} 3... Bb4 {[%clk 0:02:57.6]}
4. e5 {[%clk 0:02:59.5]} 4... c5 {[%clk 0:02:57.2]} 5. a3 {[%clk 0:03:00]} 5...
Bxc3+ {[%clk 0:02:57.4]} 6. bxc3 {[%clk 0:03:00.9]} 6... Ne7 {[%clk 0:02:57.7]}
7. a4 {[%clk 0:02:56]} 7... Qa5 {[%clk 0:02:55.9]} 8. Bd2 {[%clk 0:02:52.5]}
8... Qc7 {[%clk 0:02:43]} 9. Bb5+ {[%clk 0:02:43.3]} 9... Bd7 {[%clk 0:02:38.1]}
10. Bd3 {[%clk 0:02:43.2]} 10... c4 {[%clk 0:02:31]} 11. Be2 {[%clk 0:02:42.9]}
11... O-O {[%clk 0:02:29.9]} 12. Nh3 {[%clk 0:02:42.4]} 12... f6 {[%clk
0:02:23.5]} 13. f4 {[%clk 0:02:39.3]} 13... fxe5 {[%clk 0:01:47.9]} 14. fxe5
{[%clk 0:02:38.2]} 14... Nbc6 {[%clk 0:01:47.3]} 15. Rf1 {[%clk 0:02:31.8]}
15... Nxe5 {[%clk 0:01:46.4]} 16. dxe5 {[%clk 0:02:26.8]} 16... Qxe5 {[%clk
0:01:47.3]} 17. Nf4 {[%clk 0:01:31.5]} 17... g5 {[%clk 0:01:21.4]} 18. Nh5
{[%clk 0:01:30.8]} 18... Qxh2 {[%clk 0:00:29]} 19. Nf6+ {[%clk 0:01:22.7]} 19...
Kh8 {[%clk 0:00:17.2]} 20. Rf3 {[%clk 0:00:49.6]} 20... Qxg2 {[%clk 0:00:11.6]}
21. Nxd7 {[%clk 0:00:43.2]} 21... Qg1+ {[%clk 0:00:11.8]} 22. Bf1 {[%clk
0:00:41.9]} 22... Rfd8 {[%clk 0:00:04.4]} 23. Ne5 {[%clk 0:00:39.5]} 23... g4
{[%clk 0:00:04.3]} 24. Rf7 {[%clk 0:00:37.8]} 24... Qg3+ {[%clk 0:00:02.8]} 25.
Rf2 {[%clk 0:00:36.9]} 25... Qxe5+ {[%clk 0:00:03.3]} 26. Qe2 {[%clk 0:00:37.5]}
26... Qxe2+ {[%clk 0:00:03.9]} 27. Bxe2 {[%clk 0:00:37]} 27... Ng6 {[%clk
0:00:04.4]} 28. O-O-O {[%clk 0:00:36.3]} 28... e5 {[%clk 0:00:05]} 29. Rh1
{[%clk 0:00:35.6]} 29... Rf8 {[%clk 0:00:05.4]} 30. Rxf8+ {[%clk 0:00:34.6]}
30... Rxf8 {[%clk 0:00:06.3]} 31. Bxg4 {[%clk 0:00:34.7]} 31... Kg7 {[%clk
0:00:06.4]} 32. Be6 {[%clk 0:00:34.4]} 32... Rd8 {[%clk 0:00:05.9]} 33. Bg5
{[%clk 0:00:33.8]} 33... Rd6 {[%clk 0:00:05.6]} 34. Bc8 {[%clk 0:00:33.1]} 34...
b6 {[%clk 0:00:05.5]} 35. Bf5 {[%clk 0:00:26.9]} 35... d4 {[%clk 0:00:03.8]} 36.
cxd4 {[%clk 0:00:23.9]} 36... exd4 {[%clk 0:00:03.6]} 37. Kb2 {[%clk 0:00:15]}
37... Rd5 {[%clk 0:00:03.7]} 38. Bh6+ {[%clk 0:00:13.9]} 38... Kf6 {[%clk
0:00:03.7]} 39. Be4 {[%clk 0:00:14.3]} 39... Re5 {[%clk 0:00:03.6]} 40. Bb7
{[%clk 0:00:13.2]} 40... Ke6 {[%clk 0:00:02.8]} 41. Bc8+ {[%clk 0:00:12]} 41...
Ke7 {[%clk 0:00:02.2]} 42. Bg7 {[%clk 0:00:10.1]} 42... Rd5 {[%clk 0:00:02.2]}
43. Rxh7 {[%clk 0:00:09.7]} 43... Kd8 {[%clk 0:00:02.8]} 44. Be6 {[%clk
0:00:09.3]} 44... Nf4 {[%clk 0:00:03.2]} 45. Bf6+ {[%clk 0:00:09.4]} 45... Ke8
{[%clk 0:00:02.3]} 46. Bxd5 {[%clk 0:00:09.5]} 46... Nxd5 {[%clk 0:00:03.2]} 47.
Bxd4 {[%clk 0:00:08.2]} 47... b5 {[%clk 0:00:02.2]} 48. axb5 {[%clk 0:00:08.2]}
48... c3+ {[%clk 0:00:03]} 49. Bxc3 {[%clk 0:00:08.6]} 49... Nxc3 {[%clk
0:00:03.2]} 50. Kxc3 {[%clk 0:00:09.5]} 50... Kd8 {[%clk 0:00:03.6]} 51. Rxa7
{[%clk 0:00:09.7]} 51... Kc8 {[%clk 0:00:04.5]} 52. b6 {[%clk 0:00:10.6]} 52...
Kb8 {[%clk 0:00:05.1]} 53. Kb4 {[%clk 0:00:10.6]} 53... Kc8 {[%clk 0:00:06]} 54.
c4 {[%clk 0:00:10.8]} 54... Kb8 {[%clk 0:00:06.9]} 55. c5 {[%clk 0:00:11.4]}
55... Kc8 {[%clk 0:00:07.8]} 56. c6 {[%clk 0:00:11.7]} 56... Kd8 {[%clk
0:00:08.7]} 57. Ra8+ {[%clk 0:00:11.8]} 57... Ke7 {[%clk 0:00:09.6]} 58. c7
{[%clk 0:00:11.8]} 58... Kd6 {[%clk 0:00:10.5]} 59. c8=Q {[%clk 0:00:12.2]}
59... Ke7 {[%clk 0:00:10.8]} 60. Qc6 {[%clk 0:00:10.6]} 60... Kf7 {[%clk
0:00:10.3]} 61. Ra7+ {[%clk 0:00:11.5]} 61... Kf8 {[%clk 0:00:09.9]} 62. Qc8#
{[%clk 0:00:11.9]} 1-0

[Event "*** SCC Grand Prix: Titled Tuesday Blitz"]
[Site "Chess.com"]
[Date "2020.07.07"]
[Round "9"]
[White "pastouche06"]
[Black "bascheyaro"]
[Result "1-0"]
[WhiteElo "2534"]
[BlackElo "2686"]
[TimeControl "180+1"]
[EndTime "11:47:48 PDT"]
[Termination "pastouche06 won by checkmate"]

1. d4 {[%clk 0:02:48.9]} 1... Nf6 {[%clk 0:02:58.2]} 2. c4 {[%clk 0:02:47.4]}
2... e6 {[%clk 0:02:58]} 3. Nc3 {[%clk 0:02:46.3]} 3... d5 {[%clk 0:02:57.7]} 4.
cxd5 {[%clk 0:02:45.3]} 4... exd5 {[%clk 0:02:57.8]} 5. Bg5 {[%clk 0:02:43.9]}
5... c6 {[%clk 0:02:58.3]} 6. e3 {[%clk 0:02:42.1]} 6... Be7 {[%clk 0:02:58.6]}
7. Qc2 {[%clk 0:02:40.7]} 7... O-O {[%clk 0:02:58.6]} 8. Bd3 {[%clk 0:02:39.4]}
8... Nbd7 {[%clk 0:02:58.8]} 9. Nge2 {[%clk 0:02:37.9]} 9... Re8 {[%clk
0:02:59.3]} 10. O-O {[%clk 0:02:37.4]} 10... Nf8 {[%clk 0:02:59.6]} 11. f3
{[%clk 0:02:37.7]} 11... g6 {[%clk 0:02:59.6]} 12. Rad1 {[%clk 0:02:33.4]} 12...
Ne6 {[%clk 0:02:59.6]} 13. Bh4 {[%clk 0:02:32.6]} 13... Ng7 {[%clk 0:02:59.2]}
14. Bf2 {[%clk 0:02:29]} 14... a6 {[%clk 0:02:56.6]} 15. Kh1 {[%clk 0:02:26.7]}
15... Be6 {[%clk 0:02:56.3]} 16. Bg1 {[%clk 0:02:11]} 16... Qd7 {[%clk
0:02:36.6]} 17. e4 {[%clk 0:02:02.3]} 17... dxe4 {[%clk 0:02:35]} 18. fxe4
{[%clk 0:02:01.7]} 18... Bg4 {[%clk 0:02:35.1]} 19. e5 {[%clk 0:01:55.4]} 19...
Nd5 {[%clk 0:02:33.8]} 20. Nxd5 {[%clk 0:01:52.9]} 20... cxd5 {[%clk 0:02:33.9]}
21. Qd2 {[%clk 0:01:42.2]} 21... Ne6 {[%clk 0:02:24.7]} 22. h3 {[%clk
0:01:32.2]} 22... Bg5 {[%clk 0:02:24.6]} 23. Be3 {[%clk 0:01:30.1]} 23... Bxe3
{[%clk 0:02:17]} 24. Qxe3 {[%clk 0:01:31]} 24... Bxe2 {[%clk 0:02:17]} 25. Bxe2
{[%clk 0:01:31.9]} 25... Rac8 {[%clk 0:02:14.2]} 26. Bd3 {[%clk 0:01:14.4]}
26... Qe7 {[%clk 0:02:06]} 27. a3 {[%clk 0:00:47.1]} 27... Rc7 {[%clk
0:02:04.6]} 28. Rf6 {[%clk 0:00:45.5]} 28... Nc5 {[%clk 0:02:04.2]} 29. Rdf1
{[%clk 0:00:32.6]} 29... Nxd3 {[%clk 0:01:39.2]} 30. Qxd3 {[%clk 0:00:33.5]}
30... Rd7 {[%clk 0:01:39.5]} 31. R1f4 {[%clk 0:00:31.4]} 31... Qd8 {[%clk
0:01:37.5]} 32. Qf3 {[%clk 0:00:23.5]} 32... Ree7 {[%clk 0:01:35.9]} 33. Qg4
{[%clk 0:00:18.3]} 33... Rc7 {[%clk 0:01:22.9]} 34. Qg5 {[%clk 0:00:18.5]} 34...
Qe8 {[%clk 0:01:19.1]} 35. h4 {[%clk 0:00:14.9]} 35... Qa4 {[%clk 0:01:03.9]}
36. Kh2 {[%clk 0:00:11.4]} 36... Qe8 {[%clk 0:00:51.4]} 37. h5 {[%clk
0:00:10.9]} 37... Rc6 {[%clk 0:00:37.5]} 38. hxg6 {[%clk 0:00:07.8]} 38... hxg6
{[%clk 0:00:36.2]} 39. Rh4 {[%clk 0:00:07.6]} 39... Qf8 {[%clk 0:00:05.7]} 40.
Rxc6 {[%clk 0:00:06.8]} 40... Re6 {[%clk 0:00:05.3]} 41. Rxe6 {[%clk 0:00:06]}
41... fxe6 {[%clk 0:00:05.8]} 42. Qxg6+ {[%clk 0:00:04.8]} 42... Qg7 {[%clk
0:00:06.7]} 43. Qxe6+ {[%clk 0:00:03.4]} 43... Kf8 {[%clk 0:00:06.6]} 44. Rf4+
{[%clk 0:00:03.3]} 44... Qf6 {[%clk 0:00:07.2]} 45. Qxf6+ {[%clk 0:00:02.9]}
45... Ke8 {[%clk 0:00:08.1]} 46. Qf7+ {[%clk 0:00:03]} 46... Kd8 {[%clk
0:00:08.3]} 47. e6 {[%clk 0:00:03.9]} 47... b5 {[%clk 0:00:07.9]} 48. Qd7#
{[%clk 0:00:04.8]} 1-0

[Event "*** SCC Grand Prix: Titled Tuesday Blitz"]
[Site "Chess.com"]
[Date "2020.07.07"]
[Round "9"]
[White "Chesswizard_2007"]
[Black "NikolaGry"]
[Result "0-1"]
[WhiteElo "2465"]
[BlackElo "2622"]
[TimeControl "180+1"]
[EndTime "11:47:51 PDT"]
[Termination "NikolaGry won by checkmate"]

1. d4 {[%clk 0:03:00.9]} 1... d5 {[%clk 0:02:58]} 2. c4 {[%clk 0:02:54.4]} 2...
Nc6 {[%clk 0:02:57.7]} 3. Nf3 {[%clk 0:02:46.2]} 3... Bg4 {[%clk 0:02:56.8]} 4.
cxd5 {[%clk 0:02:39.9]} 4... Bxf3 {[%clk 0:02:56.2]} 5. gxf3 {[%clk 0:02:40.8]}
5... Qxd5 {[%clk 0:02:56.2]} 6. e3 {[%clk 0:02:41.3]} 6... e5 {[%clk 0:02:56.1]}
7. Nc3 {[%clk 0:02:42.2]} 7... Bb4 {[%clk 0:02:55.6]} 8. Bd2 {[%clk 0:02:41.6]}
8... Bxc3 {[%clk 0:02:55.7]} 9. bxc3 {[%clk 0:02:42.5]} 9... Qd6 {[%clk
0:02:55.5]} 10. Rb1 {[%clk 0:02:41]} 10... b6 {[%clk 0:02:54.3]} 11. Bb5 {[%clk
0:02:39.6]} 11... Ne7 {[%clk 0:02:53.5]} 12. f4 {[%clk 0:02:32.4]} 12... exf4
{[%clk 0:02:46.8]} 13. e4 {[%clk 0:02:32.1]} 13... O-O {[%clk 0:02:39.8]} 14.
Qg4 {[%clk 0:02:29.7]} 14... Rad8 {[%clk 0:02:06.3]} 15. Qxf4 {[%clk 0:02:24.8]}
15... Qe6 {[%clk 0:01:53.8]} 16. O-O {[%clk 0:02:16.9]} 16... Na5 {[%clk
0:01:36.6]} 17. Kh1 {[%clk 0:02:13]} 17... f5 {[%clk 0:01:16.4]} 18. Rbe1 {[%clk
0:02:00.6]} 18... fxe4 {[%clk 0:01:07.8]} 19. Qxe4 {[%clk 0:02:01.5]} 19...
Qxe4+ {[%clk 0:01:07.9]} 20. Rxe4 {[%clk 0:02:02.4]} 20... Nd5 {[%clk
0:01:05.4]} 21. Re5 {[%clk 0:01:32.4]} 21... c6 {[%clk 0:01:02.1]} 22. Bd3
{[%clk 0:01:27.4]} 22... b5 {[%clk 0:00:59.2]} 23. f4 {[%clk 0:01:18.8]} 23...
Nc4 {[%clk 0:00:54.4]} 24. Bxc4 {[%clk 0:01:06]} 24... bxc4 {[%clk 0:00:54.3]}
25. f5 {[%clk 0:01:03.8]} 25... Rb8 {[%clk 0:00:42.6]} 26. Rg1 {[%clk
0:00:56.3]} 26... Kf7 {[%clk 0:00:31.5]} 27. Re6 {[%clk 0:00:50.8]} 27... Rfc8
{[%clk 0:00:20]} 28. Re2 {[%clk 0:00:34.4]} 28... Rb2 {[%clk 0:00:19.4]} 29.
Reg2 {[%clk 0:00:34.2]} 29... Rg8 {[%clk 0:00:19.3]} 30. Be1 {[%clk 0:00:29.2]}
30... Rxg2 {[%clk 0:00:19.1]} 31. Kxg2 {[%clk 0:00:30.1]} 31... Rb8 {[%clk
0:00:18.2]} 32. Kf3 {[%clk 0:00:24.3]} 32... Rb2 {[%clk 0:00:18]} 33. Ke4 {[%clk
0:00:14.3]} 33... Rxa2 {[%clk 0:00:17.5]} 34. Ke5 {[%clk 0:00:14.8]} 34... Rxh2
{[%clk 0:00:16.3]} 35. Kd6 {[%clk 0:00:15.1]} 35... Rc2 {[%clk 0:00:15.9]} 36.
Kxc6 {[%clk 0:00:14]} 36... Nxc3 {[%clk 0:00:16.1]} 37. Bxc3 {[%clk 0:00:13.1]}
37... Rxc3 {[%clk 0:00:16.3]} 38. d5 {[%clk 0:00:14]} 38... Rd3 {[%clk
0:00:16.6]} 39. Ra1 {[%clk 0:00:13.1]} 39... Kf6 {[%clk 0:00:15.8]} 40. Rxa7
{[%clk 0:00:13.4]} 40... c3 {[%clk 0:00:15.1]} 41. Ra1 {[%clk 0:00:04.3]} 41...
Kxf5 {[%clk 0:00:13.2]} 42. d6 {[%clk 0:00:04.4]} 42... g5 {[%clk 0:00:12.2]}
43. d7 {[%clk 0:00:03.2]} 43... h5 {[%clk 0:00:11.7]} 44. Kc7 {[%clk 0:00:03.2]}
44... h4 {[%clk 0:00:09.8]} 45. Rf1+ {[%clk 0:00:02.4]} 45... Kg4 {[%clk
0:00:08.3]} 46. Re1 {[%clk 0:00:02.9]} 46... Rxd7+ {[%clk 0:00:07.7]} 47. Kxd7
{[%clk 0:00:02.9]} 47... Kf3 {[%clk 0:00:07.9]} 48. Kc6 {[%clk 0:00:03.3]} 48...
g4 {[%clk 0:00:08.1]} 49. Kd5 {[%clk 0:00:04]} 49... g3 {[%clk 0:00:08.3]} 50.
Kc4 {[%clk 0:00:04.5]} 50... h3 {[%clk 0:00:08.3]} 51. Kxc3 {[%clk 0:00:04.8]}
51... h2 {[%clk 0:00:08.1]} 52. Kd3 {[%clk 0:00:05.4]} 52... g2 {[%clk
0:00:07.6]} 53. Re3+ {[%clk 0:00:05.8]} 53... Kf4 {[%clk 0:00:07.8]} 54. Re4+
{[%clk 0:00:06.1]} 54... Kf5 {[%clk 0:00:08]} 55. Re1 {[%clk 0:00:04.1]} 55...
g1=Q {[%clk 0:00:08.2]} 56. Re2 {[%clk 0:00:04.4]} 56... h1=Q {[%clk 0:00:07.9]}
57. Kd2 {[%clk 0:00:04.7]} 57... Qd5+ {[%clk 0:00:07.5]} 58. Kc2 {[%clk
0:00:03.3]} 58... Qgd1+ {[%clk 0:00:07.4]} 59. Kc3 {[%clk 0:00:02.8]} 59... Qxe2
{[%clk 0:00:07.5]} 60. Kb4 {[%clk 0:00:03.4]} 60... Qec4+ {[%clk 0:00:07.5]} 61.
Ka3 {[%clk 0:00:01.4]} 61... Qb3# {[%clk 0:00:08.4]} 0-1

[Event "*** SCC Grand Prix: Titled Tuesday Blitz"]
[Site "Chess.com"]
[Date "2020.07.07"]
[Round "9"]
[White "Julianos82"]
[Black "kleopl"]
[Result "1-0"]
[WhiteElo "2269"]
[BlackElo "2383"]
[TimeControl "180+1"]
[EndTime "11:47:54 PDT"]
[Termination "Julianos82 won by resignation"]

1. d4 {[%clk 0:03:00.9]} 1... Nf6 {[%clk 0:02:59.6]} 2. Nf3 {[%clk 0:03:00]}
2... g6 {[%clk 0:02:59.8]} 3. c4 {[%clk 0:02:59]} 3... Bg7 {[%clk 0:02:59.4]} 4.
Nc3 {[%clk 0:02:58.7]} 4... d5 {[%clk 0:02:59.7]} 5. cxd5 {[%clk 0:02:58.1]}
5... Nxd5 {[%clk 0:03:00.6]} 6. Na4 {[%clk 0:02:57.6]} 6... Nb6 {[%clk
0:02:57.9]} 7. Nc5 {[%clk 0:02:53.8]} 7... N6d7 {[%clk 0:02:55]} 8. Nb3 {[%clk
0:02:50.9]} 8... O-O {[%clk 0:02:48.5]} 9. Bg5 {[%clk 0:02:50.7]} 9... Re8
{[%clk 0:02:47.1]} 10. e3 {[%clk 0:02:49.8]} 10... b6 {[%clk 0:02:45.5]} 11. Bd3
{[%clk 0:02:45.6]} 11... Ba6 {[%clk 0:02:44.5]} 12. Rc1 {[%clk 0:02:36.5]} 12...
c5 {[%clk 0:02:32.9]} 13. O-O {[%clk 0:02:26]} 13... Bxd3 {[%clk 0:02:31.3]} 14.
Qxd3 {[%clk 0:02:26.9]} 14... cxd4 {[%clk 0:02:27.3]} 15. Nfxd4 {[%clk 0:02:07]}
15... a5 {[%clk 0:01:57.7]} 16. a4 {[%clk 0:01:52.8]} 16... Ra7 {[%clk
0:01:32.7]} 17. Rfd1 {[%clk 0:01:48.7]} 17... Rc7 {[%clk 0:01:29.6]} 18. Rxc7
{[%clk 0:01:30.6]} 18... Qxc7 {[%clk 0:01:28.2]} 19. Nb5 {[%clk 0:01:30.6]}
19... Qc6 {[%clk 0:01:17]} 20. N3d4 {[%clk 0:01:28.5]} 20... Qd5 {[%clk
0:01:13.5]} 21. Bh4 {[%clk 0:01:20]} 21... Ne5 {[%clk 0:01:06.8]} 22. Qc2 {[%clk
0:01:12.4]} 22... Qc4 {[%clk 0:00:54.3]} 23. Qxc4 {[%clk 0:01:08]} 23... Nxc4
{[%clk 0:00:55.2]} 24. b3 {[%clk 0:01:08]} 24... Ne5 {[%clk 0:00:42.8]} 25. Rc1
{[%clk 0:01:05]} 25... Na6 {[%clk 0:00:38.5]} 26. Nc6 {[%clk 0:00:49.3]} 26...
Nxc6 {[%clk 0:00:34.6]} 27. Rxc6 {[%clk 0:00:50.2]} 27... Nc5 {[%clk 0:00:34.3]}
28. Rxb6 {[%clk 0:00:46.7]} 28... Nxb3 {[%clk 0:00:34.2]} 29. Nc7 {[%clk
0:00:42.4]} 29... Rc8 {[%clk 0:00:32.2]} 30. Rxb3 {[%clk 0:00:42.1]} 30... Rxc7
{[%clk 0:00:32.5]} 31. h3 {[%clk 0:00:40.5]} 31... f6 {[%clk 0:00:25.7]} 32. Bg3
{[%clk 0:00:34.2]} 32... Rc4 {[%clk 0:00:24.8]} 33. Ra3 {[%clk 0:00:26.3]} 33...
e5 {[%clk 0:00:24.1]} 34. f3 {[%clk 0:00:25.4]} 34... Bf8 {[%clk 0:00:24]} 35.
Ra2 {[%clk 0:00:24.7]} 35... Bc5 {[%clk 0:00:22.5]} 36. Bf2 {[%clk 0:00:25]}
36... Rc1+ {[%clk 0:00:18.8]} 37. Kh2 {[%clk 0:00:24.9]} 37... f5 {[%clk
0:00:18.9]} 38. g4 {[%clk 0:00:22.2]} 38... f4 {[%clk 0:00:16.1]} 39. exf4
{[%clk 0:00:20.1]} 39... Bxf2 {[%clk 0:00:16.3]} 40. Rxf2 {[%clk 0:00:20.6]}
40... exf4 {[%clk 0:00:17]} 41. Ra2 {[%clk 0:00:20.8]} 41... Rc4 {[%clk
0:00:16.2]} 42. Kg2 {[%clk 0:00:20.7]} 42... g5 {[%clk 0:00:16.6]} 43. Kf2
{[%clk 0:00:21]} 43... Kf7 {[%clk 0:00:16.6]} 44. Ke2 {[%clk 0:00:21.4]} 44...
Rc3 {[%clk 0:00:16.2]} 45. Rb2 {[%clk 0:00:20.2]} 45... Ra3 {[%clk 0:00:15.8]}
46. Rb7+ {[%clk 0:00:19.9]} 46... Kf6 {[%clk 0:00:14.5]} 47. Rb6+ {[%clk
0:00:20.2]} 47... Kf7 {[%clk 0:00:14.2]} 48. Rb7+ {[%clk 0:00:20.6]} 48... Ke6
{[%clk 0:00:13.8]} 49. Rxh7 {[%clk 0:00:17.7]} 49... Rxa4 {[%clk 0:00:13.5]} 50.
Rh5 {[%clk 0:00:18]} 50... Ke5 {[%clk 0:00:11]} 51. Rxg5+ {[%clk 0:00:17.6]}
51... Kd4 {[%clk 0:00:11.4]} 52. Rg8 {[%clk 0:00:17.3]} 52... Ra2+ {[%clk
0:00:11.7]} 53. Kd1 {[%clk 0:00:17.5]} 53... Ke3 {[%clk 0:00:12.2]} 54. g5
{[%clk 0:00:17.2]} 54... Kxf3 {[%clk 0:00:12.4]} 55. g6 {[%clk 0:00:17.3]} 55...
Rg2 {[%clk 0:00:12.5]} 56. g7 {[%clk 0:00:17.3]} 56... a4 {[%clk 0:00:12.1]} 57.
h4 {[%clk 0:00:17.6]} 57... Kf2 {[%clk 0:00:11.5]} 58. Kc1 {[%clk 0:00:15.8]}
58... f3 {[%clk 0:00:11.6]} 59. h5 {[%clk 0:00:16.3]} 59... Rg1+ {[%clk
0:00:10.4]} 60. Kb2 {[%clk 0:00:15.8]} 60... Kf1 {[%clk 0:00:07.4]} 61. h6
{[%clk 0:00:15.9]} 61... f2 {[%clk 0:00:07.7]} 62. Rf8 {[%clk 0:00:15.8]} 62...
Rg6 {[%clk 0:00:06.9]} 63. g8=Q {[%clk 0:00:13.1]} 63... Rxg8 {[%clk 0:00:06.3]}
64. Rxg8 {[%clk 0:00:14]} 64... Ke1 {[%clk 0:00:06.9]} 65. Re8+ {[%clk
0:00:13.7]} 65... Kd1 {[%clk 0:00:06.7]} 66. Rf8 {[%clk 0:00:14.1]} 66... Ke1
{[%clk 0:00:07.1]} 67. h7 {[%clk 0:00:14.5]} 67... f1=Q {[%clk 0:00:06.2]} 68.
Rxf1+ {[%clk 0:00:13.9]} 68... Kxf1 {[%clk 0:00:07.1]} 69. h8=Q {[%clk 0:00:14]}
1-0